bitfinex/quotes_BTCUSD_20241103
["timestamp","ask_amount","ask_price","bid_price","bid_amount"]
[1730642205025,0.17221386,68215.0,68214.0,0.17594178]
[1730642205224,0.17221386,68215.0,68214.0,0.03014474]
[1730642205225,0.49123833,68215.0,68214.0,0.03014474]
[1730642206032,0.48023833,68215.0,68214.0,0.02914474]
[1730642206377,0.47924797,68215.0,68214.0,0.02814474]
[1730642206490,0.63414797,68215.0,68214.0,0.03014474]
[1730642206731,0.62051947,68215.0,68214.0,0.03014474]
[1730642206929,0.59751947,68215.0,68214.0,0.02814474]
[1730642207133,0.378495,68215.0,68214.0,0.02814474]
[1730642207416,0.401495,68215.0,68214.0,0.03014474]
[1730642207754,0.62051947,68215.0,68214.0,0.03014474]
[1730642207974,0.401495,68215.0,68214.0,0.05314474]
[1730642208176,0.401495,68215.0,68200.0,0.000817]
[1730642208177,0.378525,68201.0,68200.0,0.000817]
[1730642208413,0.378525,68201.0,68200.0,0.05580115]
[1730642208995,0.378525,68201.0,68200.0,0.030817]
[1730642209208,0.42220141,68201.0,68200.0,0.030817]
[1730642209399,0.378525,68201.0,68200.0,0.030817]
[1730642210170,0.384525,68201.0,68200.0,0.031817]
[1730642210395,0.384525,68201.0,68200.0,0.000817]
[1730642210396,0.392525,68201.0,68200.0,0.000817]
[1730642210749,0.378525,68201.0,68200.0,0.001817]
[1730642210953,0.384525,68201.0,68200.0,0.001817]
[1730642211520,0.384525,68201.0,68200.0,0.20061404]
[1730642211768,0.384525,68201.0,68200.0,0.22067544]
[1730642211769,0.2379,68201.0,68200.0,0.22067544]
[1730642212762,0.2519,68201.0,68200.0,0.22067544]
[1730642212983,0.02,68201.0,68200.0,0.22267544]
[1730642213536,0.02,68201.0,68200.0,0.52410244]
[1730642213666,0.02,68201.0,68200.0,0.37747544]
[1730642214016,0.006,68201.0,68200.0,0.52410244]
[1730642214506,0.146597,68214.0,68206.0,0.03]
[1730642214726,0.146597,68214.0,68208.0,0.03]
[1730642214727,0.1,68213.0,68208.0,0.03]
[1730642214931,0.1,68213.0,68210.0,0.03]
[1730642215132,0.246599,68213.0,68212.0,0.03]
[1730642215568,0.29027541,68213.0,68212.0,0.03]
[1730642215769,0.246599,68213.0,68212.0,0.03]
[1730642216332,0.24823,68215.0,68212.0,0.03]
[1730642216535,0.101634,68215.0,68212.0,0.17579704]
[1730642216733,0.114,68213.0,68212.0,0.17679704]
[1730642216988,0.260599,68213.0,68212.0,0.17679704]
[1730642217332,0.274599,68213.0,68212.0,0.17679704]
[1730642217567,0.260599,68213.0,68212.0,0.17579704]
[1730642217776,0.246599,68213.0,68212.0,0.17579704]
[1730642217975,0.246599,68213.0,68212.0,0.19437674]
[1730642218303,0.246599,68213.0,68212.0,0.17679704]
[1730642218523,0.015634,68215.0,68212.0,0.17679704]
[1730642218524,0.115634,68215.0,68212.0,0.17679704]
[1730642218727,0.115634,68215.0,68214.0,0.03]
[1730642218934,0.015634,68215.0,68214.0,0.17579704]
[1730642219070,0.015634,68215.0,68214.0,0.19347674]
[1730642219279,0.001634,68215.0,68214.0,0.19347674]
[1730642219481,0.001634,68215.0,68214.0,0.21847674]
[1730642219999,0.001634,68215.0,68214.0,0.22140763]
[1730642220201,0.001634,68215.0,68214.0,0.21847674]
[1730642220424,0.015634,68215.0,68214.0,0.21947674]
[1730642220803,0.015634,68215.0,68214.0,0.21847674]
[1730642221001,0.015634,68215.0,68214.0,0.21947674]
[1730642221733,0.023634,68215.0,68214.0,0.52087374]
[1730642222447,0.023634,68215.0,68214.0,0.37427674]
[1730642223127,0.014,68215.0,68214.0,0.37327674]
[1730642223498,0.014,68215.0,68214.0,0.37127674]
[1730642223671,0.028,68215.0,68214.0,0.37227674]
[1730642224215,0.028,68215.0,68214.0,0.52087374]
[1730642226022,0.028,68215.0,68214.0,0.52169074]
[1730642226611,0.029634,68215.0,68214.0,0.52169074]
[1730642227959,0.029634,68215.0,68214.0,0.37509374]
[1730642228158,0.04326056,68215.0,68214.0,0.37509374]
[1730642229976,0.04326056,68215.0,68214.0,0.52169074]
[1730642229977,0.029634,68215.0,68214.0,0.52169074]
[1730642231653,0.029634,68215.0,68214.0,0.51969074]
[1730642231855,0.029634,68215.0,68214.0,0.52169074]
[1730642240004,0.029634,68215.0,68214.0,0.37309374]
[1730642240208,0.04325745,68215.0,68214.0,0.33241404]
[1730642241431,0.04325745,68215.0,68214.0,0.35541404]
[1730642243097,0.18985245,68215.0,68214.0,0.17761404]
[1730642245369,0.176229,68215.0,68214.0,0.17761404]
[1730642245973,0.18988152,68215.0,68214.0,0.17761404]
[1730642246229,0.4488439,68215.0,68214.0,0.031817]
[1730642246393,0.40358152,68215.0,68214.0,0.031817]
[1730642246611,0.46118069,68215.0,68214.0,0.031817]
[1730642247010,0.40358152,68215.0,68214.0,0.031817]
[1730642247210,0.49244307,68215.0,68214.0,0.031817]
[1730642247447,0.61524473,68215.0,68214.0,0.031817]
[1730642247981,0.274323,68202.0,68201.0,0.24902447]
[1730642248183,0.28797552,68202.0,68201.0,0.39482151]
[1730642248697,0.28797552,68202.0,68201.0,0.17579704]
[1730642249162,0.28797552,68202.0,68201.0,0.03]
[1730642249347,0.28796568,68202.0,68201.0,0.03]
[1730642249761,0.40196568,68202.0,68201.0,0.03]
[1730642250171,0.41596568,68202.0,68201.0,0.03]
[1730642250723,0.40196568,68202.0,68201.0,0.03]
[1730642250922,0.41596568,68202.0,68201.0,0.03]
[1730642251158,0.246625,68201.0,68200.0,0.000817]
[1730642251399,0.26026768,68201.0,68200.0,0.000817]
[1730642251836,0.01364268,68201.0,68200.0,0.34624104]
[1730642252050,0.01364268,68201.0,68200.0,0.23423814]
[1730642252267,0.146606,68210.0,68201.0,0.053]
[1730642252541,0.16023413,68209.0,68206.0,0.023]
[1730642252712,0.16023413,68208.0,68207.0,0.03]
[1730642252939,0.20549631,68208.0,68207.0,0.03]
[1730642254328,0.31949631,68208.0,68207.0,0.03]
[1730642254559,0.12762393,68208.0,68207.0,0.03]
[1730642254775,0.27423393,68208.0,68207.0,0.03]
[1730642255624,0.27423393,68208.0,68207.0,0.031]
[1730642255851,0.41473393,68208.0,68207.0,0.031]
[1730642256995,0.40111,68208.0,68207.0,0.031]
[1730642257319,0.41472562,68208.0,68207.0,0.031]
[1730642257538,0.45828644,68208.0,68207.0,0.031]
[1730642257717,0.4583141,68208.0,68207.0,0.031]
[1730642257912,0.52490423,68208.0,68207.0,0.031]
[1730642258115,0.48006685,68208.0,68207.0,0.031]
[1730642258514,0.41472562,68208.0,68207.0,0.031]
[1730642258718,0.45831677,68208.0,68207.0,0.031]
[1730642259518,0.41472562,68208.0,68207.0,0.031]
[1730642259747,0.41472562,68208.0,68207.0,0.001]
[1730642261772,0.41472562,68208.0,68207.0,0.17679704]
[1730642261975,0.41472562,68208.0,68207.0,0.19447674]
[1730642261976,0.26811562,68208.0,68207.0,0.19447674]
[1730642262171,0.41472562,68208.0,68207.0,0.19447674]
[1730642262634,0.16811562,68208.0,68207.0,0.17679704]
[1730642262832,0.04161562,68208.0,68207.0,0.19979704]
[1730642263249,0.028,68208.0,68207.0,0.19979704]
[1730642263451,0.04161829,68208.0,68207.0,0.23463894]
[1730642263655,0.02761829,68208.0,68207.0,0.23463894]
[1730642264239,0.01361829,68208.0,68207.0,0.23363894]
[1730642264670,0.01361829,68208.0,68207.0,0.23463894]
[1730642264671,0.02761829,68208.0,68207.0,0.23463894]
[1730642265100,0.04161829,68208.0,68207.0,0.23463894]
[1730642267585,0.04163829,68208.0,68207.0,0.19979704]
[1730642268127,0.18824819,68208.0,68207.0,0.19979704]
[1730642269851,0.04163819,68208.0,68207.0,0.19979704]
[1730642270834,0.18824819,68208.0,68207.0,0.17679704]
[1730642271316,0.18826093,68208.0,68207.0,0.17679704]
[1730642272549,0.18826093,68208.0,68207.0,0.031]
[1730642272806,0.23506093,68208.0,68207.0,0.031]
[1730642274290,0.45985165,68214.0,68207.0,0.031]
[1730642274291,0.04359115,68213.0,68208.0,0.023]
[1730642274519,0.001634,68214.0,68213.0,0.2098]
[1730642274754,0.001634,68214.0,68213.0,0.053]
[1730642274990,0.001634,68214.0,68213.0,0.22165271]
[1730642275268,0.148231,68214.0,68213.0,0.03]
[1730642275523,0.17008678,68214.0,68213.0,0.03]
[1730642275982,0.24558678,68214.0,68213.0,0.03]
[1730642276186,0.25958678,68214.0,68213.0,0.031]
[1730642276387,0.35958678,68214.0,68213.0,0.03]
[1730642276590,0.65278378,68214.0,68213.0,0.17579704]
[1730642277250,0.65278378,68214.0,68213.0,0.03]
[1730642277251,0.69958378,68214.0,68213.0,0.03]
[1730642277453,0.55298678,68214.0,68213.0,0.03]
[1730642277655,0.69958378,68214.0,68213.0,0.03]
[1730642278073,0.69958378,68214.0,68213.0,0.031]
[1730642278274,0.677728,68214.0,68213.0,0.031]
[1730642278502,0.69958203,68214.0,68213.0,0.031]
[1730642279557,0.677728,68214.0,68213.0,0.001]
[1730642281803,0.72135783,68214.0,68213.0,0.001]
[1730642282052,0.677728,68214.0,68213.0,0.001]
[1730642282640,0.72139347,68214.0,68213.0,0.001]
[1730642283639,0.677728,68214.0,68213.0,0.001]
[1730642283914,0.74317274,68214.0,68213.0,0.001]
[1730642284347,0.8329777,68214.0,68213.0,0.001]
[1730642286258,0.84664559,68214.0,68213.0,0.001]
[1730642286884,0.97753508,68214.0,68213.0,0.001]
[1730642287041,0.84664559,68214.0,68213.0,0.001]
[1730642287447,0.97753508,68214.0,68213.0,0.001]
[1730642288900,0.84645724,68214.0,68213.0,0.001]
[1730642289135,0.88897384,68214.0,68213.0,0.001]
[1730642289473,0.84645724,68214.0,68213.0,0.001]
[1730642290917,0.16872924,68214.0,68213.0,0.43079704]
[1730642291122,0.16872924,68214.0,68213.0,0.62724754]
[1730642291123,0.01366789,68214.0,68213.0,0.62724754]
[1730642291303,0.001634,68215.0,68214.0,0.2098]
[1730642291484,0.01530856,68215.0,68214.0,0.42301169]
[1730642291687,0.01530856,68215.0,68214.0,0.56960869]
[1730642292536,0.02930856,68215.0,68214.0,0.57060869]
[1730642292773,0.03630856,68215.0,68214.0,0.57160869]
[1730642293191,0.02930856,68215.0,68214.0,0.57060869]
[1730642293391,0.03630856,68215.0,68214.0,0.57160869]
[1730642293728,0.03630856,68215.0,68214.0,0.42501169]
[1730642293927,0.02930856,68215.0,68214.0,0.42401169]
[1730642294055,0.02230856,68215.0,68214.0,0.42401169]
[1730642294256,0.02230856,68215.0,68214.0,0.57160869]
[1730642294480,0.02230856,68215.0,68214.0,0.42501169]
[1730642294682,0.008634,68215.0,68214.0,0.57160869]
[1730642294889,0.008634,68215.0,68214.0,0.42401169]
[1730642294890,0.02229305,68215.0,68214.0,0.42401169]
[1730642295093,0.02229305,68215.0,68214.0,0.42501169]
[1730642295784,0.02229305,68215.0,68214.0,0.42301169]
[1730642296108,0.02229305,68215.0,68214.0,0.42501169]
[1730642298260,0.008634,68215.0,68214.0,0.42501169]
[1730642298465,0.02228226,68215.0,68214.0,0.42501169]
[1730642299422,0.02228226,68215.0,68214.0,0.57160869]
[1730642300190,0.008634,68215.0,68214.0,0.57160869]
[1730642309559,0.008634,68215.0,68214.0,0.33259704]
[1730642310217,0.008634,68215.0,68214.0,0.33541504]
[1730642310814,0.008634,68215.0,68214.0,0.33341504]
[1730642311018,0.008634,68215.0,68214.0,0.35841504]
[1730642311165,0.008634,68215.0,68214.0,0.35641504]
[1730642311370,0.02226085,68215.0,68214.0,0.39225654]
[1730642311571,0.008634,68215.0,68214.0,0.39225654]
[1730642312592,0.008634,68215.0,68214.0,0.39425654]
[1730642312792,0.008634,68215.0,68214.0,0.39225654]
[1730642312995,0.008634,68215.0,68214.0,0.39425654]
[1730642313197,0.02226156,68215.0,68214.0,0.39225654]
[1730642313888,0.07126156,68215.0,68214.0,0.20161504]
[1730642314086,0.21785656,68215.0,68214.0,0.17861504]
[1730642314628,0.21785656,68215.0,68214.0,0.032818]
[1730642314629,0.40025656,68215.0,68214.0,0.032818]
[1730642314833,0.42206625,68215.0,68214.0,0.032818]
[1730642315201,0.46567911,68215.0,68214.0,0.032818]
[1730642315402,0.46567229,68215.0,68214.0,0.032818]
[1730642315596,0.42206625,68215.0,68214.0,0.032818]
[1730642316367,0.42206625,68215.0,68214.0,0.031818]
[1730642316593,0.43606625,68215.0,68214.0,0.032818]
[1730642316973,0.42906625,68215.0,68214.0,0.031818]
[1730642317197,0.41506625,68215.0,68214.0,0.031818]
[1730642317400,0.42906625,68215.0,68214.0,0.031818]
[1730642317969,0.44306625,68215.0,68214.0,0.031818]
[1730642318370,0.48668679,68215.0,68214.0,0.031818]
[1730642318949,0.44308403,68215.0,68214.0,0.031818]
[1730642319726,0.44308403,68215.0,68214.0,0.001818]
[1730642324627,0.407629,68215.0,68214.0,0.001818]
[1730642324830,0.44308377,68215.0,68214.0,0.001818]
[1730642325032,0.48669121,68215.0,68214.0,0.001818]
[1730642326081,0.407629,68215.0,68214.0,0.001818]
[1730642326230,0.42126348,68215.0,68214.0,0.001818]
[1730642326438,0.44307826,68215.0,68214.0,0.001818]
[1730642327939,0.44307005,68215.0,68214.0,0.001818]
[1730642329503,0.48667749,68215.0,68214.0,0.001818]
[1730642329931,0.44307005,68215.0,68214.0,0.001818]
[1730642330105,1.11202352,68215.0,68214.0,0.001818]
[1730642330325,0.76302352,68215.0,68214.0,0.001818]
[1730642330527,0.68080863,68215.0,68214.0,0.001818]
[1730642330731,0.78982724,68215.0,68214.0,0.001818]
[1730642330970,0.65161496,68215.0,68214.0,0.001818]
[1730642331202,0.65161496,68215.0,68208.0,0.000818]
[1730642331203,0.377808,68209.0,68208.0,0.000818]
[1730642331412,2.553308,68209.0,68208.0,0.000818]
[1730642331615,2.58872429,68209.0,68208.0,0.000818]
[1730642331944,2.74421027,68209.0,68208.0,0.000818]
[1730642332149,3.09321027,68209.0,68208.0,0.000818]
[1730642332351,3.84846675,68209.0,68208.0,0.000818]
[1730642332692,3.36971027,68209.0,68208.0,0.000818]
[1730642332892,3.37471027,68209.0,68208.0,0.000818]
[1730642333046,0.38781,68208.0,68207.0,6.799e-05]
[1730642333254,0.377825,68201.0,68200.0,0.000857]
[1730642333494,0.65587082,68201.0,68200.0,0.000857]
[1730642334485,0.5686993,68201.0,68200.0,0.000857]
[1730642334893,0.5826993,68201.0,68200.0,0.001857]
[1730642335296,0.5686993,68201.0,68200.0,0.000857]
[1730642335500,0.47853266,68201.0,68200.0,0.001857]
[1730642335739,0.49253266,68201.0,68200.0,0.001857]
[1730642335946,0.47853266,68201.0,68200.0,0.000857]
[1730642336361,0.83253266,68201.0,68200.0,0.000857]
[1730642336560,0.73851586,68201.0,68200.0,0.000857]
[1730642336905,1.08006129,68201.0,68200.0,0.000857]
[1730642337151,0.97123039,68201.0,68200.0,0.000857]
[1730642337356,1.08006272,68201.0,68200.0,0.030857]
[1730642337491,0.98523039,68201.0,68200.0,0.031857]
[1730642338583,1.07223056,68201.0,68200.0,0.031857]
[1730642339330,1.07223056,68201.0,68200.0,0.001857]
[1730642339530,0.98523039,68201.0,68200.0,0.001857]
[1730642339745,0.89713309,68201.0,68200.0,0.001857]
[1730642339989,2.5874893,68201.0,68200.0,0.001857]
[1730642340192,1.34225653,68201.0,68200.0,0.001857]
[1730642340322,0.83190032,68201.0,68200.0,0.001857]
[1730642340723,0.89713151,68201.0,68200.0,0.001857]
[1730642341112,0.89713111,68201.0,68200.0,0.001857]
[1730642341325,0.86174374,68201.0,68200.0,0.001857]
[1730642341543,0.83190677,68201.0,68200.0,0.001857]
[1730642342197,0.89713851,68201.0,68200.0,0.001857]
[1730642342378,0.87470012,68201.0,68200.0,0.001857]
[1730642342582,1.11391486,68201.0,68200.0,0.001857]
[1730642342785,1.02691469,68201.0,68200.0,0.001857]
[1730642342990,1.11391486,68201.0,68200.0,9.597e-05]
[1730642343236,1.11391486,68201.0,68200.0,9.7e-07]
[1730642343237,1.2597119,68201.0,68200.0,9.7e-07]
[1730642343436,0.146685,68173.0,68172.0,0.03]
[1730642343613,0.18207977,68173.0,68172.0,0.17579704]
[1730642344838,0.19607977,68173.0,68172.0,0.17679704]
[1730642345254,0.21007977,68173.0,68172.0,0.17679704]
[1730642345469,0.21007977,68173.0,68172.0,0.031]
[1730642345680,0.21507977,68173.0,68172.0,0.031]
[1730642345825,0.31507977,68173.0,68172.0,0.031]
[1730642346403,0.30107977,68173.0,68172.0,0.031]
[1730642346606,0.31507977,68173.0,68172.0,0.031]
[1730642347565,0.30107977,68173.0,68172.0,0.03]
[1730642347968,0.31507977,68173.0,68172.0,0.03]
[1730642348374,0.30107977,68173.0,68172.0,0.03]
[1730642348619,0.005,68171.0,68157.0,0.03]
[1730642348816,0.04939477,68173.0,68157.0,0.053]
[1730642348817,0.146717,68158.0,68157.0,0.053]
[1730642349010,0.18211177,68158.0,68157.0,0.03]
[1730642349936,0.19611177,68158.0,68157.0,0.03]
[1730642350553,0.18211177,68158.0,68157.0,0.03]
[1730642350877,0.14672,68157.0,68156.0,4e-05]
[1730642351097,0.18211477,68157.0,68156.0,4e-05]
[1730642352658,0.19611477,68157.0,68156.0,4e-05]
[1730642353054,0.18211477,68157.0,68156.0,4e-05]
[1730642353454,0.19611477,68157.0,68156.0,4e-05]
[1730642353883,0.14672,68157.0,68156.0,4e-05]
[1730642354082,0.18202551,68157.0,68156.0,4e-05]
[1730642354309,0.19602551,68157.0,68156.0,4e-05]
[1730642354512,0.21002551,68157.0,68156.0,4e-05]
[1730642354872,0.19602551,68157.0,68156.0,4e-05]
[1730642355074,0.19102551,68157.0,68156.0,4e-05]
[1730642355396,0.20502551,68157.0,68156.0,4e-05]
[1730642355660,0.19102551,68157.0,68156.0,4e-05]
[1730642355795,0.20502551,68157.0,68156.0,4e-05]
[1730642355997,0.19102551,68157.0,68156.0,4e-05]
[1730642356699,0.20502551,68157.0,68156.0,4e-05]
[1730642356906,0.16972,68157.0,68156.0,4e-05]
[1730642357102,0.19101904,68157.0,68156.0,4e-05]
[1730642357539,0.20501904,68157.0,68156.0,4e-05]
[1730642357942,0.19101904,68157.0,68156.0,4e-05]
[1730642358121,0.19101904,68157.0,68156.0,0.17583704]
[1730642358320,0.20501904,68157.0,68156.0,0.17665504]
[1730642358907,0.19101904,68157.0,68156.0,0.17665504]
[1730642359081,0.20501904,68157.0,68156.0,0.000858]
[1730642359303,0.28751904,68157.0,68156.0,0.000858]
[1730642359506,0.29251904,68157.0,68156.0,0.000858]
[1730642360006,0.43951904,68157.0,68156.0,0.000858]
[1730642360710,0.151726,68154.0,68153.0,0.000818]
[1730642360929,0.28702504,68154.0,68153.0,0.000818]
[1730642361143,0.41231839,68154.0,68153.0,0.000818]
[1730642361291,0.151743,68146.0,68145.0,0.00083]
[1730642361513,0.22983539,68146.0,68145.0,0.00083]
[1730642361920,0.32983539,68146.0,68145.0,0.00083]
[1730642362445,0.41233539,68146.0,68145.0,0.00083]
[1730642363004,0.42633539,68146.0,68145.0,0.00083]
[1730642363674,0.44038049,68146.0,68145.0,0.00083]
[1730642364007,0.48738049,68146.0,68145.0,0.00083]
[1730642365045,0.46438049,68146.0,68145.0,0.00083]
[1730642365416,0.48338049,68146.0,68145.0,0.00083]
[1730642365569,0.49738049,68146.0,68145.0,0.00083]
[1730642365769,0.48338049,68146.0,68145.0,0.00083]
[1730642365971,0.256748,68144.0,68143.0,0.00067931]
[1730642366172,0.29502669,68144.0,68143.0,0.00067931]
[1730642366392,0.29209214,68144.0,68143.0,0.00067931]
[1730642366598,0.33506516,68144.0,68143.0,0.00067931]
[1730642367133,0.29209214,68144.0,68143.0,0.00067931]
[1730642367347,0.33506516,68144.0,68143.0,0.00067931]
[1730642367523,0.28709214,68144.0,68143.0,0.00067931]
[1730642368063,0.30109214,68144.0,68143.0,0.00067931]
[1730642368715,0.28709214,68144.0,68143.0,0.00067931]
[1730642369093,0.30109214,68144.0,68143.0,0.00067931]
[1730642369294,0.31509214,68144.0,68143.0,0.00067931]
[1730642369503,0.30109214,68144.0,68143.0,0.00067931]
[1730642369899,0.31509214,68144.0,68143.0,0.00067931]
[1730642370704,0.31509105,68144.0,68143.0,0.00067931]
[1730642375699,0.146767,68135.0,68134.0,0.23]
[1730642375931,0.18211005,68135.0,68134.0,0.37579704]
[1730642376861,0.18211005,68135.0,68134.0,0.54462278]
[1730642377079,0.03534305,68135.0,68134.0,0.54462278]
[1730642377513,0.04934305,68135.0,68134.0,0.54462278]
[1730642378201,0.03534305,68135.0,68134.0,0.54662278]
[1730642378661,0.04934305,68135.0,68134.0,0.54662278]
[1730642378867,0.04934305,68135.0,68134.0,0.54756604]
[1730642379563,0.06334305,68135.0,68134.0,0.54756604]
[1730642379982,0.04934305,68135.0,68134.0,0.54756604]
[1730642380185,0.04945498,68135.0,68134.0,0.70226604]
[1730642380294,0.04945498,68135.0,68134.0,0.97069178]
[1730642380736,0.06346162,68135.0,68134.0,0.97069178]
[1730642381154,0.03546162,68135.0,68134.0,0.97069178]
[1730642381595,0.06346162,68135.0,68134.0,0.97069178]
[1730642381831,0.06346162,68135.0,68134.0,0.47549704]
[1730642382034,0.19622862,68135.0,68134.0,0.39879704]
[1730642382238,0.04946162,68135.0,68134.0,0.39879704]
[1730642382446,0.21022862,68135.0,68134.0,0.37661604]
[1730642382662,0.21522862,68135.0,68134.0,0.37661604]
[1730642382872,0.20122862,68135.0,68134.0,0.37661604]
[1730642383282,0.21522862,68135.0,68134.0,0.37661604]
[1730642383662,0.18722862,68135.0,68134.0,0.37661604]
[1730642384117,0.18222862,68135.0,68134.0,0.37661604]
[1730642384267,0.20122862,68135.0,68134.0,0.37661604]
[1730642384476,0.21522862,68135.0,68134.0,0.37661604]
[1730642384677,0.20122862,68135.0,68134.0,0.37661604]
[1730642385105,0.21522862,68135.0,68134.0,0.37661604]
[1730642386337,0.174767,68135.0,68134.0,0.37661604]
[1730642386540,0.21024627,68135.0,68134.0,0.37661604]
[1730642389138,0.21524627,68135.0,68134.0,0.37661604]
[1730642390259,0.21024627,68135.0,68134.0,0.37661604]
[1730642390556,0.21524627,68135.0,68134.0,0.37661604]
[1730642390974,0.179767,68135.0,68134.0,0.37661604]
[1730642393018,0.165767,68135.0,68134.0,0.37661604]
[1730642393262,0.151767,68135.0,68134.0,0.37661604]
[1730642393463,0.179767,68135.0,68134.0,0.37661604]
[1730642393877,0.151767,68135.0,68134.0,0.37661604]
[1730642394312,0.179767,68135.0,68134.0,0.37661604]
[1730642395516,0.174767,68135.0,68134.0,0.37661604]
[1730642395782,0.179767,68135.0,68134.0,0.37381604]
[1730642397369,0.21528521,68135.0,68134.0,0.37381604]
[1730642398722,0.21028521,68135.0,68134.0,0.37381604]
[1730642398951,0.21528521,68135.0,68134.0,0.37381604]
[1730642399908,0.21028521,68135.0,68134.0,0.37381604]
[1730642400384,0.21028521,68135.0,68134.0,0.37581604]
[1730642400632,0.21028319,68135.0,68134.0,0.39881604]
[1730642400877,0.21028319,68135.0,68134.0,0.39681604]
[1730642401522,0.21028319,68135.0,68134.0,0.39881604]
[1730642401790,0.21028319,68135.0,68134.0,0.39681604]
[1730642401955,0.21028319,68135.0,68134.0,0.37381604]
[1730642402184,0.21028319,68135.0,68134.0,0.39681604]
[1730642402377,0.06351619,68135.0,68134.0,0.39881604]
[1730642402572,0.21028319,68135.0,68134.0,0.39881604]
[1730642403029,0.028,68135.0,68134.0,0.69934178]
[1730642403267,0.06351455,68135.0,68134.0,0.69934178]
[1730642403494,0.174767,68135.0,68134.0,0.39681604]
[1730642403660,0.21028238,68135.0,68134.0,0.39681604]
[1730642405548,0.23304865,68135.0,68134.0,0.37381604]
[1730642405753,0.21028238,68135.0,68134.0,0.37381604]
[1730642405958,0.21028238,68135.0,68134.0,0.39681604]
[1730642406439,0.21841032,68135.0,68134.0,0.37381604]
[1730642406645,0.21028074,68135.0,68134.0,0.37381604]
[1730642407057,0.27574572,68135.0,68134.0,0.37381604]
[1730642407275,0.27738372,68135.0,68134.0,0.37381604]
[1730642407704,0.21191874,68135.0,68134.0,0.37381604]
[1730642407914,0.30272683,68135.0,68134.0,0.37381604]
[1730642408121,0.30772683,68135.0,68134.0,0.37381604]
[1730642408314,0.32958141,68135.0,68134.0,0.37381604]
[1730642410217,0.32458141,68135.0,68134.0,0.52851604]
[1730642410525,0.25562762,68135.0,68134.0,0.39681604]
[1730642410792,0.26062762,68135.0,68134.0,0.39681604]
[1730642411039,0.25562762,68135.0,68134.0,0.39681604]
[1730642411217,0.26481547,68135.0,68134.0,0.39681604]
[1730642411908,0.22110659,68135.0,68134.0,0.39681604]
[1730642412360,0.25562762,68135.0,68134.0,0.39681604]
[1730642412944,0.22011388,68135.0,68134.0,0.39681604]
[1730642413147,0.2119319,68135.0,68134.0,0.39681604]
[1730642413762,0.2119319,68135.0,68134.0,0.39881604]
[1730642413965,0.07428206,68135.0,68134.0,0.54558504]
[1730642414164,0.21193803,68135.0,68134.0,0.39881604]
[1730642414373,0.06517103,68135.0,68134.0,0.39881604]
[1730642415139,0.19793803,68135.0,68134.0,0.39881604]
[1730642415344,0.19793803,68135.0,68134.0,0.39681604]
[1730642415639,0.21193803,68135.0,68134.0,0.39681604]
[1730642416064,0.19793803,68135.0,68134.0,0.39681604]
[1730642416433,0.21193803,68135.0,68134.0,0.39681604]
[1730642417118,0.21193803,68135.0,68134.0,0.49361879]
[1730642417316,0.21193803,68135.0,68134.0,0.39681604]
[1730642419371,0.26486252,68135.0,68134.0,0.39681604]
[1730642419753,0.22014177,68135.0,68134.0,0.39681604]
[1730642419968,0.22112921,68135.0,68134.0,0.39681604]
[1730642420159,0.26486598,68135.0,68134.0,0.39681604]
[1730642420491,0.22112921,68135.0,68134.0,0.39681604]
[1730642421229,0.25567571,68135.0,68134.0,0.39681604]
[1730642423315,0.22013927,68135.0,68134.0,0.39681604]
[1730642423473,0.25568029,68135.0,68134.0,0.39681604]
[1730642423676,0.25568025,68135.0,68134.0,0.39681604]
[1730642424590,0.21194598,68135.0,68134.0,0.39681604]
[1730642426259,0.21194598,68135.0,68134.0,0.39881604]
[1730642426451,0.21194598,68135.0,68134.0,0.50305406]
[1730642426661,0.21194598,68135.0,68134.0,0.65775406]
[1730642426995,0.21194598,68135.0,68134.0,0.55151604]
[1730642427205,0.23473186,68135.0,68134.0,0.55151604]
[1730642427380,0.22113289,68135.0,68134.0,0.55151604]
[1730642427895,0.22113289,68135.0,68134.0,0.39681604]
[1730642430088,0.22113479,68135.0,68134.0,0.39681604]
[1730642430714,0.07436779,68135.0,68134.0,0.39681604]
[1730642431140,0.22113479,68135.0,68134.0,0.39681604]
[1730642432401,0.22613479,68135.0,68134.0,0.39681604]
[1730642433031,0.22113479,68135.0,68134.0,0.39681604]
[1730642433474,0.22113466,68135.0,68134.0,0.39681604]
[1730642433677,0.0835551,68135.0,68134.0,0.54264178]
[1730642433896,0.11909955,68135.0,68134.0,0.54264178]
[1730642434291,0.11909955,68135.0,68134.0,0.39681604]
[1730642435236,0.26586655,68135.0,68134.0,0.39681604]
[1730642436017,0.26586692,68135.0,68134.0,0.39681604]
[1730642436860,0.22113466,68135.0,68134.0,0.39681604]
[1730642437066,0.26586542,68135.0,68134.0,0.39681604]
[1730642437488,0.34156542,68135.0,68134.0,0.37381604]
[1730642437715,0.34156542,68135.0,68134.0,0.39681604]
[1730642437895,0.40719689,68135.0,68134.0,0.39681604]
[1730642438112,0.34156542,68135.0,68134.0,0.37381604]
[1730642438315,0.34656542,68135.0,68134.0,0.37381604]
[1730642438532,0.65145166,68135.0,68134.0,0.37381604]
[1730642438939,0.65145166,68135.0,68134.0,0.228019]
[1730642439148,0.65145166,68135.0,68134.0,0.22493962]
[1730642439149,0.76079883,68135.0,68134.0,0.22493962]
[1730642439574,0.65145166,68135.0,68134.0,0.22493962]
[1730642440815,0.66145166,68135.0,68134.0,0.22493962]
[1730642441065,1.79199602,68135.0,68134.0,0.22493962]
[1730642441272,1.61607821,68135.0,68134.0,0.22493962]
[1730642441736,1.60207821,68135.0,68134.0,0.22493962]
[1730642441962,1.61607821,68135.0,68134.0,0.22493962]
[1730642442403,1.60207821,68135.0,68134.0,0.22493962]
[1730642442616,1.58807821,68135.0,68134.0,0.22493962]
[1730642442827,1.60207821,68135.0,68134.0,0.22493962]
[1730642443036,1.60105276,68135.0,68134.0,0.22493962]
[1730642443249,1.556322,68135.0,68134.0,0.22493962]
[1730642443456,1.60101725,68135.0,68134.0,0.22493962]
[1730642443662,1.71814146,68135.0,68134.0,0.22493962]
[1730642444005,1.73214146,68135.0,68134.0,0.22493962]
[1730642444207,1.61501725,68135.0,68134.0,0.22493962]
[1730642446615,1.61497959,68135.0,68134.0,0.22493962]
[1730642447029,1.61542359,68135.0,68134.0,0.22493962]
[1730642448775,0.61606738,68135.0,68134.0,0.22493962]
[1730642449458,0.61606738,68135.0,68134.0,0.1789895]
[1730642449948,0.56140979,68135.0,68134.0,0.32481524]
[1730642450165,0.22604571,68135.0,68134.0,0.49361228]